Workbook

Sheet Balance Sheet
B1: January | C1: February | D1: March
A2: ASSETS
A3: Current Assets
A4: 11110 TFF-BCSB Checking Account | B4: 32162.15 | C4: 7590.05 | D4: 85105.7
A5: 11120 JP Morgan MM | B5: 112644.08 | C5: 1332382.96 | D5: 12083685.4
A6: 11130 JP Morgan Cash Account | B6: 93611.09 | C6: =30039.13 -> 30039.13 | D6: 77484.4
A7: 11140 JP Morgan - US Treasuries | B7: =443996.69 -> 443996.69 | C7: 351141.46 | D7: 602401.38
A8: 11240 Short-Term Investments | B8: 1512817.47 | C8: 2893590.81 | D8: 2765592.46
A9: Total Checking/Saving | B9: =SUM(B4:B8) -> 2195231.48 | C9: =SUM(C4:C8) -> 4614744.41 | D9: 15614269.34
A10: Other Current Assets
A11: 11210 Pledges Receivable | B11: =11074824.15 -> 11074824.15 | C11: =11074824.15 -> 11074824.15 | D11: 0
A12: 11220 Prepaid Excise Tax | B12: =1765 -> 1765 | C12: =1765 -> 1765 | D12: 1765
A13: 11230 Prepaid Expenses | B13: =37963.87 -> 37963.87 | C13: =37963.87 -> 37963.87 | D13: 37963.87
A14: 11260 Accrued Interest | D14: 3269.07
A15: Total Other Current Assets | B15: =SUM(B11:B14) -> 11114553.02 | C15: =SUM(C11:C14) -> 11114553.02 | D15: =SUM(D11:D14) -> 42997.94
A16: Total Current Assets | B16: =+B9+B15 -> 13309784.5 | C16: =+C9+C15 -> 15729297.43 | D16: =+D9+D15 -> 15657267.28
A17: Other Assets
A18: 12100 JP Morgan Investments | B18: 9892990.55 | C18: 7786926.3 | D18: 7571125.08
A19: Total Current Assets
A20: Total Current Assets | B20: =SUM(B18:B19) -> 9892990.55 | C20: =SUM(C18:C19) -> 7786926.3 | D20: 7571125.08
A21: TOTAL ASSETS | B21: =+B16+B18 -> 23202775.05 | C21: =+C16+C18 -> 23516223.73 | D21: =+D16+D18 -> 23228392.36
A22: LIABILITIES AND EQUITY
A23: Liabilities
A24: Current Liabilities
A25: 22100 Accounts Payable | B25: =343.94 -> 343.94 | C25: =343.94 -> 343.94 | D25: 343.94
A26: 22300 Excise Tax Payable
A27: 22200 Contributions Payable | B27: =339805.08 -> 339805.08 | C27: =295495.05 -> 295495.05 | D27: 288039.1
A28: Total Current Liabilities | B28: =SUM(B25:B27) -> 340149.02 | C28: =SUM(C25:C27) -> 295838.99 | D28: =SUM(D25:D27) -> 288383.04
A29: Total Liabilities | B29: =+B28 -> 340149.02 | C29: =+C28 -> 295838.99 | D29: =+D28 -> 288383.04
A30: Equity
A31: 31000 Retained Earnings | B31: 21780909.49 | C31: 21780909.49 | D31: 21780909.49
A32: 32000 Board Designated Funds | B32: =1422858 -> 1422858 | C32: =1422858 -> 1422858 | D32: =1422858 -> 1422858
A33: 33000 Donor Restricted Funds | B33: =10000 -> 10000 | C33: =10000 -> 10000 | D33: =10000 -> 10000
A34: Net Revenue | B34: -351141.46 | C34: 6617.25 | D34: -273758.17
A35: Total Equity | B35: =(((B31)+(B32))+(B33))+(B34) -> 22862626.03 | C35: =(((C31)+(C32))+(C33))+(C34) -> 23220384.74 | D35: =(((D31)+(D32))+(D33))+(D34) -> 22940009.32
A36: TOTAL LIABILITIES AND EQUITY | B36: =(B29)+(B35) -> 23202775.05 | C36: =(C29)+(C35) -> 23516223.73 | D36: =(D29)+(D35) -> 23228392.36

Sheet Income - Actual vs Budget
B2: Jan 2024 | C2: Feb 2024 | D2: March 2024 | E2: Jan-March | G2: Budget | I2: $ Over Budget | K2: % of Budget
A3: Revenue
A4: 41000 Dot Cash Contribution | B4: 0 | C4: 0 | D4: 0 | E4: 0 | G4: 14700000 | I4: 14700000 | K4: =ROUND(IF(G4=0, IF(E4=0, 0, 1), E4/G4),5) -> 0
A5: 42000 Dividends | B5: 11045.08 | C5: 8631.72 | D5: 664.52 | E5: =SUM(B5:D5) -> 20341.32 | G5: 242099 | I5: =ROUND((E5-G5),5) -> -221757.68 | K5: 0.08402
A6: 42001 Interest | B6: 10090.71 | C6: 5918.93 | D6: 54351.47 | E6: 70361.11 | G6: 15000 | I6: 55361.11 | K6: 4.69074
A7: 43000 Trustee Fee | E7: 0 | G7: 6000 | I7: -6000 | K7: 0
A8: 44000 Refund of Grants | B8: 1175 | C8: 33259.99 | E8: 34434.99 | I8: 34434.99 | K8: 1
A9: 42002 Realized Gain(Loss) | B9: -287.19 | C9: 1575.17 | D9: 22601.87 | E9: 23889.85 | I9: 23889.85 | K9: 1
A10: 42003 Unrealized Gain (Loss) | B10: 4743.35 | C10: 270753.5 | D10: 258176.58 | E10: 533673.43 | G10: 363148 | I10: 170525.43 | K10: 1.46958
A11: 45000 Other Income | B11: 100 | C11: 2279.22 | E11: 2379.22 | I11: 2379.22 | K11: 1
A12: 46000 InKind Donations | B12: 73523.5 | C12: 79246.35 | E12: 152769.85 | I12: 152769.85
A13: Total Revenue | B13: =SUM(B4:B12) -> 100390.45 | C13: =SUM(C5:C12) -> 401664.88 | D13: =SUM(D4:D12) -> 335794.44 | E13: =SUM(E4:E12) -> 837849.77 | G13: =SUM(G4:G11) -> 15326247 | I13: =SUM(I4:I12) -> 14911602.77 | K13: =ROUND(IF(G13=0, IF(E13=0, 0, 1), E13/G13),5) -> 0.05467
A14: Gross Profit
A15: Expenditures
A16: 50000 Grant Expenses
A17: 51000 Education
A18: 51100 Catholic Schools Proactive | B18: 10000 | E18: =SUM(B18:C18) -> 10000 | G18: 950500 | I18: =ROUND((E18-G18),5) -> -940500 | K18: =ROUND(IF(G18=0, IF(E18=0, 0, 1), E18/G18),5) -> 0.01052
A19: 51200 Formal Funding Proactive | B19: 161900 | C19: 5000 | E19: =SUM(B19:C19) -> 166900 | G19: 765000 | I19: =ROUND((E19-G19),5) -> -598100 | K19: 0.21817
A20: Total 51200 Formal Funding Proactive | B20: =SUM(B14:B19) -> 171900 | C20: =SUM(C14:C19) -> 5000 | E20: =SUM(B20:C20) -> 176900 | G20: =SUM(G18:G19) -> 1715500 | I20: -1538600 | K20: 0.10312
A21: 51300 Formal Funding Responsive | B21: 22300 | C21: 84000 | E21: =SUM(B21:C21) -> 106300 | G21: 900000 | I21: -793700 | K21: 0.11811
A22: Total 51000 Education | B22: =SUM(B20:B21) -> 194200 | C22: =+C21+C20 -> 89000 | E22: =SUM(B22:C22) -> 283200 | G22: =SUM(G20:G21) -> 2615500 | I22: -2332300 | K22: 0.10828
A23: 52000 Brown County
A24: Total 52100 Proactive | B24: 30000 | C24: 4368 | E24: =SUM(B24:C24) -> 34368 | G24: 1757000 | I24: -1722632 | K24: 0.01956
A25: 52200 Brown County Responsive | B25: 0 | E25: =SUM(B25:C25) -> 0 | G25: 50000 | I25: -50000 | K25: 0
A26: Total 52000 Brown County | B26: =SUM(B24:B25) -> 30000 | C26: =SUM(C24:C25) -> 4368 | E26: =SUM(E24:E25) -> 34368 | G26: =SUM(G24:G25) -> 1807000 | I26: -1772632 | K26: 0.01902
A27: 53000 Youth
A28: Total 53100 Proactive | B28: 2500 | D28: 1000 | E28: =SUM(B28:D28) -> 3500 | G28: 313000 | I28: =ROUND((E28-G28),5) -> -309500 | K28: 0.01118
A29: 53299 Youth Responsive | C29: 15000 | E29: =SUM(B29:C29) -> 15000 | G29: 200000 | I29: -185000 | K29: 0.075
A30: Total 53000 Youth | B30: =SUM(B28:B29) -> 2500 | C30: =SUM(C28:C29) -> 15000 | D30: =SUM(D28:D29) -> 1000 | E30: =SUM(E28:E29) -> 18500 | G30: =SUM(G28:G29) -> 513000 | I30: -494500 | K30: 0.03606
A31: 54000 Families
A32: Total Families Proactive | B32: 0 | C32: 50000 | E32: =SUM(B32:D32) -> 50000 | G32: 401000 | I32: =ROUND((E32-G32),5) -> -351000 | K32: 0.12469
A33: 54200 Families Responsive | B33: 0 | C33: 10000 | D33: 5000 | E33: =SUM(B33:D33) -> 15000 | G33: 300000 | I33: -285000 | K33: 0.05
A34: Total 54000 Families | B34: =SUM(B32:B33) -> 0 | C34: =SUM(C32:C33) -> 60000 | D34: =SUM(D32:D33) -> 5000 | E34: =SUM(E32:E33) -> 65000 | G34: =SUM(G32:G33) -> 701000 | I34: -636000 | K34: 0.09272
A35: 55000 Mental Health
A36: Total Mental Health Proactive | B36: =SUM(B31:B35) -> 0 | E36: =SUM(B36:C36) -> 0 | G36: 465000 | I36: =ROUND((E36-G36),5) -> -465000 | K36: 0
A37: 55200 Mental Health Responsive | B37: 0 | E37: =SUM(B37:C37) -> 0 | G37: 150000 | I37: -150000 | K37: 0
A38: Total 55000 Mental Health | B38: =SUM(B36:B37) -> 0 | E38: =SUM(E36:E37) -> 0 | G38: =SUM(G36:G37) -> 615000 | I38: -615000 | K38: 0
A39: 56000 Capacity Building
A40: Total 56100 Proactive | B40: 15664 | C40: 34405 | D40: 78323.35 | E40: =SUM(B40:D40) -> 128392.35 | G40: 508000 | I40: =ROUND((E40-G40),5) -> -379607.65 | K40: 0.25274
A41: 56200 Responsive Capacity Building | B41: 25900 | C41: 30000 | D41: 44300 | E41: =SUM(B41:D41) -> 100200 | G41: 450000 | I41: -349800 | K41: 0.22267
A42: Total 56000 Capacity Building | B42: =SUM(B40:B41) -> 41564 | C42: =SUM(C40:C41) -> 64405 | D42: =SUM(D40:D41) -> 122623.35 | E42: =SUM(E40:E41) -> 228592.35 | G42: =SUM(G40:G41) -> 958000 | I42: -729407.65 | K42: 0.23861
A43: 57100 Invitation Grants
A44: 57110 Education | B44: 0 | D44: 15000 | E44: =SUM(B44:D44) -> 15000 | G44: 202000 | K44: =ROUND(IF(G44=0, IF(E44=0, 0, 1), E44/G44),5) -> 0.07426
A45: 57120 Families | B45: 0 | E45: =SUM(B45:C45) -> 0 | G45: 378000 | K45: =ROUND(IF(G45=0, IF(E45=0, 0, 1), E45/G45),5) -> 0
A46: 57130 Mental Health | B46: 0 | E46: =SUM(B46:C46) -> 0 | G46: 99000 | K46: =ROUND(IF(G46=0, IF(E46=0, 0, 1), E46/G46),5) -> 0
A47: 57140 Youth | B47: 0 | E47: =SUM(B47:C47) -> 0 | G47: 146000 | K47: =ROUND(IF(G47=0, IF(E47=0, 0, 1), E47/G47),5) -> 0
A48: 57100 Total Invitation Grants | B48: =SUM(B44:B47) -> 0 | D48: =SUM(D44:D47) -> 15000 | E48: =SUM(E44:E47) -> 15000 | G48: =SUM(G44:G47) -> 825000 | I48: =ROUND((E48-G48),5) -> -810000 | K48: =ROUND(IF(G48=0, IF(E48=0, 0, 1), E48/G48),5) -> 0.01818
A49: 57200 Matching Grant
A50: 57210 2G Matching Grants | B50: 29000 | C50: 15000 | D50: 92000 | E50: =SUM(B50:D50) -> 136000 | G50: 1440000 | I50: =ROUND((E50-G50),5) -> -1304000 | K50: =ROUND(IF(G50=0, IF(E50=0, 0, 1), E50/G50),5) -> 0.09444
A51: 57220 3G Matching Grants | B51: 4671.44 | C51: 4412.8 | D51: 20636 | E51: =SUM(B51:D51) -> 29720.24 | G51: 575000 | I51: -545279.76 | K51: 0.05169
A52: 57240 Non-family Trustee | B52: 1500 | E52: =SUM(B52:D52) -> 1500 | G52: 90000 | I52: -88500 | K52: 0.01667
A53: 57250 Non Family Staff | E53: =SUM(B53:D53) -> 0 | G53: 60000 | I53: -60000 | K53: 0
A54: 57200 Total Matching Grant | B54: =SUM(B50:B53) -> 35171.44 | C54: =SUM(C50:C53) -> 19412.8 | D54: =SUM(D50:D53) -> 112636 | E54: =SUM(E50:E53) -> 167220.24 | G54: =SUM(G50:G53) -> 2165000 | I54: -1997779.76 | K54: 0.07724
A55: 57300 Volunteer Incentive | B55: 0 | D55: 1500 | E55: =SUM(B55:D55) -> 1500 | G55: 15000 | I55: =ROUND((E55-G55),5) -> -13500 | K55: =ROUND(IF(G55=0, IF(E55=0, 0, 1), E55/G55),5) -> 0.1
A56: 57400 Next Gen | B56: 0 | C56: 4000 | E56: =SUM(B56:D56) -> 4000 | G56: 170000 | I56: =ROUND((E56-G56),5) -> -166000 | K56: =ROUND(IF(G56=0, IF(E56=0, 0, 1), E56/G56),5) -> 0.02353
A57: Total 50000 Grant Expenses | B57: =+B22+B26+B30+B34+B38+B42+B48+B54+B55+B56 -> 303435.44 | C57: =+C22+C26+C30+C34+C38+C42+C48+C54+C55+C56 -> 256185.8 | D57: =+D22+D26+D30+D34+D38+D42+D48+D54+D55+D56 -> 257759.35 | E57: =+E22+E26+E30+E34+E38+E42+E48+E54+E55+E56 -> 817380.59 | G57: =+G22+G26+G30+G34+G38+G42+G48+G54+G55+G56 -> 10384500 | I57: =ROUND((E57-G57),5) -> -9567119.41 | K57: =ROUND(IF(G57=0, IF(E57=0, 0, 1), E57/G57),5) -> 0.07871
A58: 58100 Direct Charitable | C58: 595 | E58: =SUM(B58:C58) -> 595 | G58: 595 | I58: =ROUND((E58-G58),5) -> 0 | K58: =ROUND(IF(G58=0, IF(E58=0, 0, 1), E58/G58),5) -> 1
A59: 60000 Program and Admin
A60: 61000 Accounting/Audit Fees | B60: 0 | C60: 1771.87 | E60: =SUM(B60:D60) -> 1771.87 | G60: 12800 | I60: =ROUND((E60-G60),5) -> -11028.13 | K60: =ROUND(IF(G60=0, IF(E60=0, 0, 1), E60/G60),5) -> 0.13843
A61: 61200 Advertisement / Marketing | B61: 1500 | E61: 1500 | G61: 10000 | I61: -8500 | K61: 0.15
A62: 61300 Bank Charge | B62: 40 | C62: 30 | D62: 50 | E62: 120 | G62: 200 | I62: -80 | K62: 0.6
A63: 61400 Board and Family Retreat | E63: 0 | G63: 10000 | I63: -10000 | K63: 0
A64: 61500 Contractual Agents | D64: 5000 | E64: 5000 | G64: 8000 | I64: -3000 | K64: 0.625
A65: 61600 Directors Fees | B65: 15850 | E65: 15850 | G65: 63400 | I65: -47550 | K65: 0.25
A66: 61700 Professional Development | B66: 1201.76 | C66: 1809 | E66: 3010.76 | G66: 44975 | I66: -41964.24 | K66: 0.06694
A67: 61800 Grant Mgmt Software / Cybergrants | E67: 0 | G67: 37954 | I67: -37954 | K67: 0
A68: 61900 Insurance | B68: 3486 | E68: 3486 | G68: 3750 | I68: -264 | K68: 0.9296
A69: 62000 Investment Fees | B69: 4968.32 | E69: 4968.32
A70: 62100 Meeting Expense | B70: 258.13 | C70: 3749.2 | D70: 540 | E70: 4547.33 | G70: 36450 | I70: -31902.67 | K70: 0.12476
A71: 62200 Membership Dues | B71: 2440 | C71: 1600 | E71: 4040 | G71: 5040 | I71: -1000 | K71: 0.80159
A72: 62300 Miscellaneous | B72: 323.7 | E72: 323.7 | G72: 6000 | I72: -5676.3 | K72: 0.05395
A73: 62400 Office | E73: 0 | G73: 300 | I73: -300 | K73: 0
A74: 62500 Office Supplies | B74: 544.24 | E74: 544.24 | G74: 3500 | I74: -2955.76 | K74: 0.1555
A75: 62600 Payroll Taxes | B75: 5611.37 | C75: 4936.69 | E75: 10548.06 | G75: 69875 | I75: -59326.94 | K75: 0.15096
A76: 62700 P.O. Box Rent | E76: 0 | G76: 85 | I76: -85 | K76: 0
A77: 62800 Professional Fee | B77: 39401.19 | C77: 40461.71 | E77: 79862.9 | G77: 151000 | I77: -71137.1 | K77: 0.52889
A78: 62900 Publications | C78: 10000 | E78: 10000 | G78: 15000 | I78: -5000 | K78: 0.66667
A79: 63000 Staff Comp & Benefits | B79: 66625.17 | C79: 67504.83 | E79: 134130 | G79: 1075000 | I79: -940870 | K79: 0.12477
A80: 63100 Tax & Filing Fee | E80: 0 | G80: 6000 | I80: -6000 | K80: 0
A81: 63300 Technology Expense | B81: 1838.3 | C81: 5339.62 | D81: 75 | E81: 7252.92 | G81: 28200 | I81: -20947.08 | K81: 0.2572
A82: 63400 Travel Expense | B82: 4008.29 | C82: 1063.91 | D82: 1604.05 | E82: 6676.25 | G82: 20750 | I82: -14073.75 | K82: 0.32175
A83: Total 60000 Program and Admin | B83: =SUM(B60:B82) -> 148096.47 | C83: =SUM(C60:C82) -> 138266.83 | D83: =SUM(D60:D82) -> 7269.05 | E83: =SUM(E60:E82) -> 293632.35 | G83: =SUM(G60:G82) -> 1608279 | I83: -1314646.65 | K83: 0.18258
A84: Total Expenditures | B84: =+B57+B83+B58 -> 451531.91 | C84: =+C57+C83+C58 -> 395047.63 | D84: =+D57+D83+D58 -> 265028.4 | E84: =SUM(B84:D84) -> 1111607.94 | G84: =+G57+G83+G58 -> 11993374 | I84: -10881766.06 | K84: 0.09269
A85: Net Operating Revenue | B85: =+B13-B84 -> -351141.46 | C85: =+C13-C84 -> 6617.25 | D85: =+D13-D84 -> 70766.04 | E85: =SUM(B85:D85) -> -273758.17 | G85: =+G84-G13 -> -3332873 | I85: 3059114.83 | K85: 0.08214
A86: Net Revenue | B86: =B85 -> -351141.46 | C86: =C85 -> 6617.25 | D86: =D85 -> 70766.04 | E86: =E85 -> -273758.17 | G86: -3332873 | I86: 3059114.83 | K86: 0.08214

Sheet Retained Earnings
I2: Without Donor Restrictions -
E3: Total | G3: Without Donor | I3: Board Designated - | K3: With Donor Restrictions -
E4: Net Assets | G4: Restrictions | I4: Dorothy Tracy Estate | K4: Brown County Trails
B6: Net Assets Jan 1, 2024 | E6: 23208767.49 | G6: 21775909.49 | I6: 1422858 | K6: 10000
B9: Net Income | E9: -273758.17 | G9: -273758.17
B12: Net Assets March 31, 2024 | E12: =SUM(E6:E9) -> 22935009.32 | G12: =SUM(G6:G9) -> 21502151.32 | I12: =SUM(I6:I9) -> 1422858 | K12: =+K6+K9 -> 10000
E19: dec | G19: feb | I19: march
C20: Total Assets | E20: 23552868.56 | G20: 23609078.96 | I20: 23228392.36
C22: Less: Net Liabilities | E22: 344101.07 | G22: 295838.99 | I22: 288383.04
I23: .
C24: Net Assets | E24: =+E20-E22 -> 23208767.49 | G24: =+G20-G22 -> 23313239.97 | I24: =+I20-I22 -> 22940009.32 | K24: Net Assets per 03.31.2024 Statement of Financial Position
I28: =+I24 -> 22940009.32
I30: =+E12 -> 22935009.32 | K30: Per E12
I32: =+I28-I30 -> 5000 | K32: Difference due to 2.26.2024 Stop Payment on Friends of the Lorenzo Bull House originally issued on 12.11.2023. New check #11890 issued on Feb 28.

Sheet Cash Flow
A2: Tracy Family Foundation
A3: Statement of Cash Flows
A4: January -March 2024
B6: Jan | C6: Feb | D6: March
A7: OPERATING ACTIVITIES
A8: Net Revenue | B8: -351141.46 | C8: 6617.25 | D8: 70766.04
A9: Adjustments to reconcile Net Revenue to Net Cash provided by operations:
A10: 11240 Short Term Investments | B10: -9624.68 | C10: 1380773.34 | D10: 127998.34
A11: 22200 Contributions Payable | B11: =-3952.05 -> -3952.05 | C11: 44310.03 | D11: 11074824.15
A12: 22100 Accounts Payable
A13: 11260 Accrued Interest | D13: -3269.07
A14: Total Adjustments to reconcile Net Revenue to Net Cash provided by operations: | B14: =SUM(B10:B13) -> -13576.73 | C14: =SUM(C10:C13) -> 1425083.37 | D14: =SUM(D10:D13) -> 11199553.42
A15: Net cash provided by operating activities | B15: =(B8)+(B14) -> -364718.19 | C15: =+C14-C8 -> 1418466.12 | D15: =(D8)+(D14) -> 11270319.46
A16: INVESTING ACTIVITIES
A17: 12100 JP Morgan Investments | B17: -$40521.64 | C17: 2106064.25 | D17: 215801.22
A18: 11140 JP Morgan US Treasuries | C18: 443996.69 | D18: -609857.32
A19: Net cash provided by investing activities | B19: =B17 -> -$40521.64 | C19: =SUM(C17:C18) -> 2550060.94 | D19: =SUM(D17:D18) -> -394056.1
A20: Net cash increase for period | B20: =B15+B19 -> -405239.83 | C20: =+C19-C15 -> 1131594.82 | D20: =D15+D19 -> 10876263.36
A21: Cash at beginning of period | B21: 643657.15 | C21: =+B22 -> 238417.32 | D21: =+C22 -> 1370012.14
A22: Cash at end of period | B22: =(B20)+(B21) -> 238417.32 | C22: =(C20)+(C21) -> 1370012.14 | D22: =(D20)+(D21) -> 12246275.5
A25: Cash at End of Period Calculation
A26: 11110 TFF-BCSB Checking Account | B26: 32162.15 | C26: 7590.05 | D26: 85105.7
A27: 11120 JP Morgan MM | B27: 112644.08 | C27: 1332382.96 | D27: 12083685.4
A28: 11130 JP Morgan Cash Account | B28: 93611.09 | C28: =30039.13 -> 30039.13 | D28: 77484.4
B30: =SUM(B26:B28) -> 238417.32 | C30: =SUM(C26:C28) -> 1370012.14 | D30: =SUM(D26:D28) -> 12246275.5

Sheet Grants Pay.
C1: 01.01.2024 Balance | D1: 2024 Payments | E1: 2022 Adjustments | F1: 2022 Additions | G1: Payment Month | H1: 01.31.2024 Balance
B4: Mt. Sterling Park District | C4: 227757.13 | D4: 3952.05 | G4: January | H4: =+C4-D4 -> 223805.08
D5: 2547.95 | G5: March 20 | H5: =+H4-D5 -> 221257.13
B9: City of Mt Sterling | C9: 116000 | D9: 14098.03 | G9: February
D10: 30212 | G10: February
D11: =SUM(D9:D10) -> 44310.03 | H11: =+C9-D11 -> 71689.97
D12: 4908 | G12: March 27 | H12: =+H11-D12 -> 66781.97
C16: =SUM(C3:C10) -> 343757.13 | D16: =+D4+D5+D11+D12 -> 55718.03 | E16: =SUM(E3:E10) -> 0 | F16: =SUM(F3:F10) -> 0 | H16: =+H5+H12 -> 288039.1
E22: 11110 TFF-BCSB Checking Account | F22: -2547.95
E23: 11110 TFF-BCSB Checking Account | F23: -4908

Sheet Accts Pay.
C1: 1/1 Balance | D1: Payments | E1: Additions | F1: 1/31 Balance
B4: Deluxe | E4: =SUM(C4:D4) -> 0 | F4: =+C4+D4+E4 -> 0
B5: John Wiley | E5: =SUM(C5:D5) -> 0 | F5: =+C5+D5+E5 -> 0
B6: Office Supplies 12/31 Year End Journal Entry | E6: 343.94 | F6: =+C6-D6+E6 -> 343.94
B7: Rubin Brown | E7: =SUM(C7:D7) -> 0 | F7: 0
C9: =SUM(C4:C7) -> 0 | D9: =SUM(D4:D7) -> 0 | E9: =SUM(E3:E7) -> 343.94 | F9: =SUM(F3:F7) -> 343.94

Sheet General Ledger
B2: Date | C2: Transaction Type | D2: Num | E2: Name | F2: Memo/Description | G2: Split | H2: Amount | I2: Balance
A3: 11110 TFF-BCSB Checking Account
B4: Beginning Balance | I4: 107879.29
B5: 01/03/2024 | C5: Check | D5: 11795 | E5: First Presbyterian Church of Macomb | F5: Project Title: Leadership - Board Development- ID 91524849 | G5: 56105 Grant Expenses:Capacity Building:Proactive:Leadership - Board Development | H5: -314 | I5: 107565.29
B6: 01/03/2024 | C6: Check | D6: 11796 | E6: Bopi Print | F6: bill to: Q2562353 - business cards - inv 254290 | G6: 62500 Program and Admin:Office Supplies | H6: -343.94 | I6: 107221.35
B7: 01/03/2024 | C7: Deposit | G7: -Split- | H7: 1275 | I7: 108496.35
B8: 01/03/2024 | C8: Check | D8: 11801 | E8: Marsh USA Inc | F8: Client no: 1198300000 | G8: 61900 Program and Admin:Insurance | H8: -337 | I8: 108159.35
B9: 01/03/2024 | C9: Check | D9: 11800 | E9: The Hartford | F9: Acct # 13925527 | G9: 61900 Program and Admin:Insurance | H9: -938 | I9: 107221.35
B10: 01/03/2024 | C10: Check | D10: 11799 | E10: Exponent Philanthropy | F10: Membership dues and contribution | G10: 62210 Program and Admin:Membership Dues:Exponent Philanthropy | H10: -2440 | I10: 104781.35
B11: 01/03/2024 | C11: Check | D11: 11798 | E11: VISA #0165 | F11: 4661 0725 1500 0165 - Statement 12/13/23 | G11: -Split- | H11: -744.49 | I11: 104036.86
B12: 01/03/2024 | C12: Check | D12: 11797 | E12: Telegram Agency | F12: Web Hosting - inv 092034 | G12: 63300 Program and Admin:Technology Exp | H12: -75 | I12: 103961.86
B13: 01/10/2024 | C13: Check | D13: 11803 | E13: Quincy Public Library | F13: Project Title: QPL Summer Reading Video ID #90309215 | G13: 56101 Grant Expenses:Capacity Building:Proactive:Programs & Strategy - Marketing (Video Storytelling) | H13: -4500 | I13: 99461.86
B14: 01/10/2024 | C14: Check | D14: 11807 | E14: Farwell House | F14: Responsive Capacity Building Farwell House Fundraising ID# 91677709 | G14: 56200 Grant Expenses:Capacity Building:Responsive | H14: -3000 | I14: 96461.86
B15: 01/10/2024 | C15: Check | D15: 11805 | E15: Quincy Art Center | F15: Project Title: Video Storytelling ID# 91628153 | G15: 56101 Grant Expenses:Capacity Building:Proactive:Programs & Strategy - Marketing (Video Storytelling) | H15: -4500 | I15: 91961.86
B16: 01/10/2024 | C16: Check | D16: 11806 | E16: Our Lady's Inn | F16: Responsive Capacity Building Project Title: Salesforce Consultant Addition ID# 91572391 | G16: 56200 Grant Expenses:Capacity Building:Responsive | H16: -5000 | I16: 86961.86
B17: 01/10/2024 | C17: Check | D17: 11804 | E17: Child Center - Marygrove | F17: Project Title: Leadership Training & Development Initiative ID# 91118721 | G17: 56200 Grant Expenses:Capacity Building:Responsive | H17: -5000 | I17: 81961.86
B18: 01/10/2024 | C18: Check | D18: 11808 | E18: American Heart Association Inc | F18: 3G Matching Gifts Grant ID# 91999205 | G18: 57220 Grant Expenses:Matching Grant:3G Matching Grants | H18: -411.44 | I18: 81550.42
B19: 01/10/2024 | C19: Check | D19: 11809 | E19: Catholic Youth Summer Camp Inc | F19: 3G Matching Gifts Grant ID# 91999207 | G19: 57220 Grant Expenses:Matching Grant:3G Matching Grants | H19: -1000 | I19: 80550.42
B20: 01/10/2024 | C20: Check | D20: 11810 | E20: Ignatian Spirituality Project | F20: 2G Matching Grant ID# 91999209 | G20: 57210 Grant Expenses:Matching Grant:2G Matching Grants | H20: -5000 | I20: 75550.42
B21: 01/10/2024 | C21: Check | D21: 11811 | E21: The Hub - Arts And Cultural Center | F21: 3G Matching Gift ID# 91999213 | G21: 57220 Grant Expenses:Matching Grant:3G Matching Grants | H21: -2060 | I21: 73490.42
B22: 01/10/2024 | C22: Check | D22: 11812 | E22: United Way Of Greater St. Louis | F22: Project Title: 2G Matching Gifts Grant - ID 91999215 | G22: 57220 Grant Expenses:Matching Grant:3G Matching Grants | H22: -1200 | I22: 72290.42
B23: 01/10/2024 | C23: Check | D23: 11802 | E23: Boldly Go Philanthropy | F23: Consulting Fees - inv 1514 | G23: 62810 Program and Admin:Professional Fee:Professional Fee - Other | H23: -39401.19 | I23: 32889.23
B24: 01/10/2024 | C24: Check | D24: 11813 | E24: St. Sebastian Parish | F24: NonFamily Trustee Matching Grant ID #91999211 | G24: 57240 Grant Expenses:Matching Grant:Non-family Trustee Matching Gr | H24: -1500 | I24: 31389.23
B25: 01/17/2024 | C25: Check | D25: 11815 | E25: St. Peter Church | F25: Project Title: Matching Grant - ID 92062775 | G25: 57210 Grant Expenses:Matching Grant:2G Matching Grants | H25: -7500 | I25: 23889.23
B26: 01/17/2024 | C26: Check | D26: 11816 | E26: Holy Family Church | F26: 2GMatching Grant - ID # 92062773 | G26: 57210 Grant Expenses:Matching Grant:2G Matching Grants | H26: -7500 | I26: 16389.23
B27: 01/17/2024 | C27: Check | D27: 11817 | E27: St Mary School | F27: Catholic Schools Proactive Marketing 23-24 ID 91974587 | G27: 51106 Grant Expenses:Education:Catholic Schools Proactive:Marketing Support | H27: -10000 | I27: 6389.23
B28: 01/17/2024 | C28: Check | D28: 11818 | E28: Association For Training On Trauma & Attachment in Children | F28: Project Title: Cvent Technology - ID 92013697 | G28: 56200 Grant Expenses:Capacity Building:Responsive | H28: -5000 | I28: 1389.23
B29: 01/17/2024 | C29: Check | D29: 11814 | E29: FCAE | F29: Project Title loT Agriculture Curriculum ID 92063083 | G29: 51300 Grant Expenses:Education:Formal Funding Responsive | H29: -22300 | I29: -20910.77
B30: 01/17/2024 | C30: Check | D30: 11819 | E30: Community Foundation Serving West Central | F30: Proactive Capacity Building Dare to Lead ID 92014169 | G30: 56111 Grant Expenses:Capacity Building:Proactive:Leadership - Dare to Lead | H30: -1350 | I30: -22260.77
B31: 01/24/2024 | C31: Check | D31: 11825 | E31: Early Years Program JSD#117 | F31: ID 92009491 Professional Development | G31: 56200 Grant Expenses:Capacity Building:Responsive | H31: -3400 | I31: -25660.77
B32: 01/24/2024 | C32: Check | D32: 11821 | E32: Mt Sterling Park District | F32: ID 90705865 Clark Park Loop Debit from Contribution Payable | G32: 22200 Contributions Payable | H32: -3952.05 | I32: -29612.82
B33: 01/24/2024 | C33: Check | D33: 11822 | E33: The Relish Jar | F33: BC Trailways Signage Design | G33: 61200 Program and Admin:Advertisement / Marketing | H33: -1500 | I33: -31112.82
B34: 01/24/2024 | C34: Check | D34: 11824 | E34: Schuyler County Humane Society | F34: ID 92067103 | G34: 56200 Grant Expenses:Capacity Building:Responsive | H34: -4500 | I34: -35612.82
B35: 01/24/2024 | C35: Check | D35: 11823 | E35: Marsh USA | F35: 24-25 Renewal of Great American EPP3861244 | G35: 61900 Program and Admin:Insurance | H35: -2211 | I35: -37823.82
B36: 01/26/2024 | C36: Check | E36: Tracy Family Foundation | G36: 11120 JP Morgan MM | H36: 300000 | I36: 262176.18
B37: 01/29/2024 | C37: Expenditure | F37: Stop Payment | G37: 61300 Program and Admin:Bank Charge | H37: -20 | I37: 262156.18
B38: 01/31/2024 | C38: Check | D38: 11844 | E38: Kristin Tracy | F38: Director Fees | G38: 61600 Program and Admin:Directors Fees | H38: -1200 | I38: 260956.18
B39: 01/31/2024 | C39: Check | D39: 11845 | E39: Jake Schlater | F39: Director Fees | G39: 61600 Program and Admin:Directors Fees | H39: -1200 | I39: 259756.18
B40: 01/31/2024 | C40: Check | D40: 11826 | E40: VISA #0165 | F40: 4661 0725 1500 0165 - Statement 1/14/24 | G40: -Split- | H40: -2951.67 | I40: 256804.51
B41: 01/31/2024 | C41: Check | D41: 11846 | E41: Mark Yingling | F41: Director Fees | G41: 61600 Program and Admin:Directors Fees | H41: -1500 | I41: 255304.51
B42: 01/31/2024 | C42: Journal Entry | D42: 2024 Stop Payment | G42: -Split- | H42: -20 | I42: 255284.51
B43: 01/31/2024 | C43: Check | D43: 11843 | E43: Melanie Markay | F43: Director Fees 1.23.2024 Meeting | G43: 61600 Program and Admin:Directors Fees | H43: -1500 | I43: 253784.51
B44: 01/31/2024 | C44: Check | D44: 11842 | E44: John Sullivan | F44: Director Fees 1.23.2024 Meeting | G44: 61600 Program and Admin:Directors Fees | H44: -1500 | I44: 252284.51
B45: 01/31/2024 | C45: Check | D45: 11841 | E45: Linda Tracy | F45: Director Fees | G45: 61600 Program and Admin:Directors Fees | H45: -1500 | I45: 250784.51
B46: 01/31/2024 | C46: Check | D46: 11840 | E46: Jim Tracy | F46: Director Fees | G46: 61600 Program and Admin:Directors Fees | H46: -1200 | I46: 249584.51
B47: 01/31/2024 | C47: Check | D47: 11839 | E47: Susie Stamerjohn | F47: Director Fees | G47: 61600 Program and Admin:Directors Fees | H47: -6250 | I47: 243334.51
B48: 01/31/2024 | C48: Check | D48: 11834 | E48: Mt Sterling Community Center YMCA | F48: ID 92180085 2G Matching Gifts Grant | G48: 57210 Grant Expenses:Matching Grant:2G Matching Grants | H48: -9000 | I48: 234334.51
B49: 01/31/2024 | C49: Check | D49: 11833 | E49: The Knowledge Center At Chaddock | F49: ID 92009581 Scholarships for for Trauma-Informed Educators Conference | G49: 56119 Grant Expenses:Capacity Building:Proactive:Education-Trauma Informed Educator Training | H49: -5000 | I49: 229334.51
B50: 01/31/2024 | C50: Check | D50: 11832 | E50: The Modern Classrooms Project, Inc | F50: Project Title: Modern Classrooms - ID 91926857 | G50: 51210 Grant Expenses:Education:Formal Funding Proactive:Modern Classrooms | H50: -10500 | I50: 218834.51
B51: 01/31/2024 | C51: Check | D51: 11831 | E51: The Lutheran Church of St. John | F51: ID 91505005 Guatemala Mission Trip | G51: 53101 Grant Expenses:Youth:Proactive:Mission Trips | H51: -2500 | I51: 216334.51
B52: 01/31/2024 | C52: Check | D52: 11838 | E52: Susie Stamerjohn | F52: Expense Reimbursement | G52: 63420 Program and Admin:Travel Expense:Trustee travel to Board meetings | H52: -512.11 | I52: 215822.4
B53: 01/31/2024 | C53: Check | D53: 11837 | E53: Melanie Markay | F53: Expense Reimbursement | G53: 63420 Program and Admin:Travel Expense:Trustee travel to Board meetings | H53: -537.37 | I53: 215285.03
B54: 01/31/2024 | C54: Check | D54: 11830 | E54: Quincy School District #172 | F54: Project Title: Fostering Personal Excellence for All - ID 91675079 | G54: 51207 Grant Expenses:Education:Formal Funding Proactive:Ron Clark Initiative | H54: -76000 | I54: 139285.03
B55: 01/31/2024 | C55: Check | D55: 11829 | E55: Donorschoose Org | F55: Project Title W Central IL Public School Teacher Support ID 91690441 | G55: 51204 Grant Expenses:Education:Formal Funding Proactive:Classroom Matching Funds | H55: -60000 | I55: 79285.03
B56: 01/31/2024 | C56: Check | D56: 11828 | E56: Jacksonville School District 117 | F56: ID 90825603 Ron Clark Academy | G56: 51207 Grant Expenses:Education:Formal Funding Proactive:Ron Clark Initiative | H56: -15400 | I56: 63885.03
B57: 01/31/2024 | C57: Check | D57: 11836 | E57: Terry Jenkins | F57: Expense Reimbursement | G57: -Split- | H57: -1581.74 | I57: 62303.29
B58: 01/31/2024 | C58: Check | D58: 11827 | E58: Dorothy Tracy Education Center | F58: Project Title: BCELC Facility - ID 92139175 | G58: 52101 Grant Expenses:Brown County:Proactive:BC Early Learning Center | H58: -30000 | I58: 32303.29
B59: 01/31/2024 | C59: Check | D59: 11835 | E59: Tim Curtin | F59: Expense Reimbursement | G59: 63420 Program and Admin:Travel Expense:Trustee travel to Board meetings | H59: -141.14 | I59: 32162.15
B60: 02/07/2024 | C60: Check | D60: 11855 | E60: Carl Sandburg College Foundation | F60: Mental Health Support for Rural Students ID 90725263 | G60: 51300 Grant Expenses:Education:Formal Funding Responsive | H60: -9000 | I60: 23162.15
B61: 02/07/2024 | C61: Check | D61: 11850 | E61: NCFP | F61: 2024 Membership Dues | G61: 62220 Program and Admin:Membership Dues:National Center for Family Philanthropy | H61: -1500 | I61: 21662.15
B62: 02/07/2024 | C62: Check | D62: 11854 | E62: Quincy Notre Dame High School | F62: Project Title: Telling the Story of QND ID 92138831 | G62: 56101 Grant Expenses:Capacity Building:Proactive:Programs & Strategy - Marketing (Video Storytelling) | H62: -5000 | I62: 16662.15
B63: 02/07/2024 | C63: Check | D63: 11853 | E63: Quincy Children's Museum | F63: Project Title: ACM Conference ID 92171605 | G63: 56200 Grant Expenses:Capacity Building:Responsive | H63: -5000 | I63: 11662.15
B64: 02/07/2024 | C64: Check | D64: 11852 | E64: Voices for Children of Tampa Bay | F64: Project Title: Revitalization of VFC Website ID 92152431 | G64: 56200 Grant Expenses:Capacity Building:Responsive | H64: -5000 | I64: 6662.15
B65: 02/07/2024 | C65: Check | D65: 11857 | E65: First Christian Church | F65: Project Title: BCA Extracurriculars & Scholarships ID 90817289 | G65: 51300 Grant Expenses:Education:Formal Funding Responsive | H65: -15000 | I65: -8337.85
B66: 02/07/2024 | C66: Check | D66: 11849 | E66: Boldly Go Philanthropy | F66: Consulting Fees - Inv# 1515 | G66: 62810 Program and Admin:Professional Fee:Professional Fee - Other | H66: -40461.71 | I66: -48799.56
B67: 02/07/2024 | C67: Check | D67: 11848 | E67: John Sullivan | F67: Travel Reimbursement 1.24.2024 Board Meeting | G67: 63420 Program and Admin:Travel Expense:Trustee travel to Board meetings | H67: -262.54 | I67: -49062.1
B68: 02/07/2024 | C68: Check | D68: 11847 | E68: Telegram Agency | F68: Web Hosting - inv 092053 | G68: 63340 Program and Admin:Technology Exp:Website hosting, back-up & updates | H68: -75 | I68: -49137.1
B69: 02/07/2024 | C69: Check | D69: 11856 | E69: Western Illinois University Foundation | F69: Project Title - Healthy Children-Healthy Communities ID 90709199 | G69: 51300 Grant Expenses:Education:Formal Funding Responsive | H69: -15000 | I69: -64137.1
B70: 02/07/2024 | C70: Check | D70: 11851 | E70: West Prairie CUSD 103 | F70: Ron Clark Academy PD ID 89987047 | G70: 56113 Grant Expenses:Capacity Building:Proactive:Education - Ron Clark Academy | H70: -4405 | I70: -68542.1
B71: 02/14/2024 | C71: Check | D71: 11867 | E71: Greenfield CUSD 10 | F71: Project Title: Green County High Speed Fiber Internet - ID 78079039 | G71: 51300 Grant Expenses:Education:Formal Funding Responsive | H71: -20000 | I71: -88542.1
B72: 02/14/2024 | C72: Check | D72: 11866 | E72: Dance Collective/Mass Movement Inc | F72: Next Generation Grant ID 92463633 | G72: 57410 Grant Expenses:Next Generation:Eligible 3G's & 4G's | H72: -3000 | I72: -91542.1
B73: 02/14/2024 | C73: Check | D73: 11865 | E73: Sacred Heart Villa | F73: Project Title: Matching Gifts Grant - ID 92504129 | G73: 57220 Grant Expenses:Matching Grant:3G Matching Grants | H73: -412.8 | I73: -91954.9
B74: 02/14/2024 | C74: Check | D74: 11864 | E74: Mt. Sterling Community Center YMCA | F74: Project Title: Matching Gifts Grant - ID 92504127 | G74: 57210 Grant Expenses:Matching Grant:2G Matching Grants | H74: -3000 | I74: -94954.9
B75: 02/14/2024 | C75: Check | D75: 11863 | E75: SIU Foundation | F75: Project Title: Next Generation Grant ID #92504131 | G75: 57410 Grant Expenses:Next Generation:Eligible 3G's & 4G's | H75: -1000 | I75: -95954.9
B76: 02/14/2024 | C76: Check | D76: 11862 | E76: Friends of the Washington Theatre Nfp | F76: Project Title: Washington Theater Historic Restoration ID #92206945 | G76: 56200 Grant Expenses:Capacity Building:Responsive | H76: -5000 | I76: -100954.9
B77: 02/14/2024 | C77: Check | D77: 11861 | E77: Regional Office Of Education #1 | F77: Project Title: Building Local Capacity with Coaching & Learning Design ID #92075859 | G77: 56200 Grant Expenses:Capacity Building:Responsive | H77: -5000 | I77: -105954.9
B78: 02/14/2024 | C78: Check | D78: 11859 | E78: City of Mt Sterling | F78: 2023 Grants Payable: Brown County Proactive ID# 91281399 | G78: 22200 Contributions Payable | H78: -14098.03 | I78: -120052.93
B79: 02/14/2024 | C79: Check | D79: 11858 | E79: Atomicdust | F79: 2023 Annual Report - Inv #7180 | G79: 62910 Program and Admin:Publications:Publications - Annual Report | H79: -10000 | I79: -130052.93
B80: 02/14/2024 | C80: Deposit | G80: -Split- | H80: 5539.21 | I80: -124513.72
B81: 02/14/2024 | C81: Deposit | E81: Dorothy Tracy Education Center | G81: 44000 Refund of Grants | H81: 30000 | I81: -94513.72
B82: 02/15/2024 | C82: Check | E82: Tracy Family Foundation | G82: 11120 JP Morgan MM | H82: 300000 | I82: 205486.28
B83: 02/20/2024 | C83: Check | D83: SVCCHRG | F83: Service Charge | G83: 61300 Program and Admin:Bank Charge | H83: -20 | I83: 205466.28
B84: 02/21/2024 | C84: Check | D84: 11874 | E84: Schuyler County Humane Society | F84: Project Title: Fundraising 101 ID #92098497 | G84: 56104 Grant Expenses:Capacity Building:Proactive:Financial Health - Fundraising | H84: -5000 | I84: 200466.28
B85: 02/21/2024 | C85: Check | D85: 11875 | E85: Quincy Humane Society | F85: Project Title: Fundraising 101 ID #92241271 | G85: 56104 Grant Expenses:Capacity Building:Proactive:Financial Health - Fundraising | H85: -5000 | I85: 195466.28
B86: 02/21/2024 | C86: Check | D86: 11876 | E86: Connect Child And Family Solutions | F86: Project Title: Fundraising 101 ID #92461115 | G86: 56104 Grant Expenses:Capacity Building:Proactive:Financial Health - Fundraising | H86: -5000 | I86: 190466.28
B87: 02/21/2024 | C87: Check | D87: 11877 | E87: City of Mt. Sterling | F87: 2023 Grants Payable: Brown County Proactive ID# 91281399 | G87: 22200 Contributions Payable | H87: -30212 | I87: 160254.28
B88: 02/21/2024 | C88: Check | D88: 11878 | E88: Community Hope & Recovery Center | F88: Youth Mentoring & Connection ID #90224981 | G88: 53200 Grant Expenses:Youth:Responsive | H88: -15000 | I88: 145254.28
B89: 02/21/2024 | C89: Check | D89: 11879 | E89: Midwest Youth Services | F89: Project Title: Community Education, Awareness, & Collaboration ID #92237437 | G89: 56200 Grant Expenses:Capacity Building:Responsive | H89: -5000 | I89: 140254.28
B90: 02/21/2024 | C90: Check | D90: 11880 | E90: Smart Bellies | F90: Project Title: CRM Integration ID 915550225 | G90: 56200 Grant Expenses:Capacity Building:Responsive | H90: -3000 | I90: 137254.28
B91: 02/21/2024 | C91: Check | D91: 11881 | E91: Brown County Animal Rescue | F91: Project Title: Fundraising Infrastructure ID #92528121 | G91: 56200 Grant Expenses:Capacity Building:Responsive | H91: -2000 | I91: 135254.28
B92: 02/21/2024 | C92: Check | D92: 11882 | E92: Rushville Public Library | F92: Project Title: Early Learning Libraries 91628299 Roll Out the Red Carpet for Reading | G92: 51202 Grant Expenses:Education:Formal Funding Proactive:Early Learning Library Program | H92: -5000 | I92: 130254.28
B93: 02/21/2024 | C93: Check | D93: 11868 | E93: Action Brown County | F93: TFF Membership Dues | G93: 62240 Program and Admin:Membership Dues:Other | H93: -100 | I93: 130154.28
B94: 02/21/2024 | C94: Check | D94: 11883 | E94: Holy Family Catholic Church | F94: Project Title: Matching Gifts Grant - ID 92578613 | G94: 57210 Grant Expenses:Matching Grant:2G Matching Grants | H94: -6000 | I94: 124154.28
B95: 02/21/2024 | C95: Check | D95: 11884 | E95: Saint Meinrad Seminary | F95: Project Title: Matching Gifts Grant - ID 92578617 | G95: 57210 Grant Expenses:Matching Grant:2G Matching Grants | H95: -3000 | I95: 121154.28
B96: 02/21/2024 | C96: Check | D96: 11885 | E96: Bob Freesen YMCA Of Jacksonville | F96: Project Title: 3G Matching Gifts Grant - ID 92578611 | G96: 57220 Grant Expenses:Matching Grant:3G Matching Grants | H96: -4000 | I96: 117154.28
B97: 02/21/2024 | C97: Check | D97: 11869 | E97: VISA #0165 | F97: 4661 0725 1500 0165 - Statement 2/11/24 | G97: -Split- | H97: -5414.36 | I97: 111739.92
B98: 02/21/2024 | C98: Check | D98: 11886 | E98: Saint Ann Catholic Church | F98: Project Title: 2G Matching Gifts ID #92578615 | G98: 57210 Grant Expenses:Matching Grant:2G Matching Grants | H98: -3000 | I98: 108739.92
B99: 02/21/2024 | C99: Check | D99: 11873 | E99: Midwest Youth Services | F99: Project Title: Fundraising 101 ID #922385509 | G99: 56104 Grant Expenses:Capacity Building:Proactive:Financial Health - Fundraising | H99: -5000 | I99: 103739.92
B100: 02/21/2024 | C100: Check | D100: 11871 | E100: Quincy Public Library | F100: Project Title: QPL Mobile Library ID # 75727571 | G100: 51300 Grant Expenses:Education:Formal Funding Responsive | H100: -25000 | I100: 78739.92
B101: 02/21/2024 | C101: Check | D101: 11872 | E101: Quincy Catholic Elementary Schools (QCES) Foundation | F101: Project Title: Fundraising 101 ID #92241493 | G101: 56104 Grant Expenses:Capacity Building:Proactive:Financial Health - Fundraising | H101: -5000 | I101: 73739.92
B102: 02/22/2024 | C102: Check | E102: Wire Fee | G102: 61300 Program and Admin:Bank Charge | H102: -10 | I102: 73729.92
B103: 02/22/2024 | C103: Check | D103: 11870 | E103: Arnold Behrens Nesbit Gray | F103: ID 9863 / 9867 / 9866 - Bookkeeping | G103: 61000 Program and Admin:Accounting / Audit Fees | H103: -1771.87 | I103: 71958.05
B104: 02/28/2024 | C104: Check | D104: 11889 | E104: YMCA Of West Central Illinois | F104: ID #92588235 | G104: 54103 Grant Expenses:Families:Proactive:Mt. Sterling YMCA / Quincy Y | H104: -50000 | I104: 21958.05
B105: 02/28/2024 | C105: Check | D105: 11890 | E105: Friends of the Lorenzo Bull House | F105: ID #89991229 | G105: 56200 Grant Expenses:Capacity Building:Responsive | H105: -5000 | I105: 16958.05
B106: 02/28/2024 | C106: Check | D106: 11888 | E106: YMCA Of West Central Illinois | F106: ID #92239863 | G106: 52101 Grant Expenses:Brown County:Proactive:BC Early Learning Center | H106: -4368 | I106: 12590.05
B107: 02/28/2024 | C107: Check | D107: 11887 | E107: Quincy University | F107: ID 76950645 | G107: 54200 Grant Expenses:Families:Responsive | H107: -10000 | I107: 2590.05
B108: 02/28/2024 | C108: Journal Entry | D108: 11494void | G108: -Split- | H108: 5000 | I108: 7590.05
B109: 02/29/2024 | C109: Journal Entry | D109: February Mark to Mark | G109: -Split- | H109: 300000 | I109: 307590.05
B110: 02/29/2024 | C110: Journal Entry | D110: Duplicate Transfer | G110: -Split- | H110: -300000 | I110: 7590.05
B111: 03/06/2024 | C111: Check | D111: 11894 | E111: St. Peter Church | F111: ID 92666497 | G111: 57210 Grant Expenses:Matching Grant:2G Matching Grants | H111: -15000 | I111: -7409.95
B112: 03/06/2024 | C112: Check | D112: 11895 | E112: Most Precious Blood Catholic Church | F112: ID# 92666491 | G112: 57220 Grant Expenses:Matching Grant:3G Matching Grants | H112: -3000 | I112: -10409.95
B113: 03/06/2024 | C113: Check | D113: 11896 | E113: Almost Home Rescue | F113: ID #92666483 | G113: 57220 Grant Expenses:Matching Grant:3G Matching Grants | H113: -200 | I113: -10609.95
B114: 03/06/2024 | C114: Check | D114: 11897 | E114: Friends Of The Chatham Area Library District | F114: ID #92666487 | G114: 57220 Grant Expenses:Matching Grant:3G Matching Grants | H114: -6000 | I114: -16609.95
B115: 03/06/2024 | C115: Check | D115: 11898 | E115: Ball-Chatham Educational Foundation | F115: ID #92666485 | G115: 57220 Grant Expenses:Matching Grant:3G Matching Grants | H115: -1400 | I115: -18009.95
B116: 03/06/2024 | C116: Check | D116: 11899 | E116: Most Precious Blood Catholic Church | F116: ID# 92666489 | G116: 57220 Grant Expenses:Matching Grant:3G Matching Grants | H116: -4000 | I116: -22009.95
B117: 03/06/2024 | C117: Check | D117: 11900 | E117: Sacred Heart Villa | F117: ID # 92666493 | G117: 57220 Grant Expenses:Matching Grant:3G Matching Grants | H117: -1236 | I117: -23245.95
B118: 03/06/2024 | C118: Check | D118: 11901 | E118: Luther Memorial Church | F118: ID #88785663 | G118: 53101 Grant Expenses:Youth:Proactive:Mission Trips | H118: -1000 | I118: -24245.95
B119: 03/06/2024 | C119: Check | D119: 11902 | E119: St. Patrick Catholic School | F119: ID #92666495 | G119: 57220 Grant Expenses:Matching Grant:3G Matching Grants | H119: -2000 | I119: -26245.95
B120: 03/06/2024 | C120: Check | D120: 11891 | E120: Telegram Agency | F120: Web Hosting - inv 092060 | G120: 63340 Program and Admin:Technology Exp:Website hosting, back-up & updates | H120: -75 | I120: -26320.95
B121: 03/06/2024 | C121: Check | D121: 11892 | E121: The Gable Group | F121: Marty Simpson & Shawn Reynolds Appearance 10.19.2024 | G121: 61500 Program and Admin:Contractual Agents | H121: -5000 | I121: -31320.95
B122: 03/06/2024 | C122: Check | D122: 11903 | E122: SOS Children's Village Illinois | F122: ID #91936191 | G122: 56200 Grant Expenses:Capacity Building:Responsive | H122: -5000 | I122: -36320.95
B123: 03/06/2024 | C123: Check | D123: 11904 | E123: Jensen Camp Foundation | F123: ID #92487565 | G123: 56101 Grant Expenses:Capacity Building:Proactive:Programs & Strategy - Marketing (Video Storytelling) | H123: -4500 | I123: -40820.95
B124: 03/06/2024 | C124: Check | D124: 11905 | E124: Quincy University | F124: ID 77495601 | G124: 56200 Grant Expenses:Capacity Building:Responsive | H124: -5000 | I124: -45820.95
B125: 03/06/2024 | C125: Check | D125: 11906 | E125: Lincoln Elementary | F125: ID #92576689 | G125: 56200 Grant Expenses:Capacity Building:Responsive | H125: -4300 | I125: -50120.95
B126: 03/06/2024 | C126: Check | D126: 11907 | E126: Trinity Classical Academy | F126: ID #92626125 | G126: 56114 Grant Expenses:Capacity Building:Proactive:Education - School Culture Special Invite | H126: -3000 | I126: -53120.95
B127: 03/06/2024 | C127: Check | D127: 11908 | E127: Franklin CUSD #1 | F127: ID #92201291 | G127: 56200 Grant Expenses:Capacity Building:Responsive | H127: -5000 | I127: -58120.95
B128: 03/06/2024 | C128: Check | D128: 11909 | E128: Rooney Elementary | F128: ID #92577473 | G128: 56114 Grant Expenses:Capacity Building:Proactive:Education - School Culture Special Invite | H128: -2500 | I128: -60620.95
B129: 03/06/2024 | C129: Check | D129: 11910 | E129: Colonel George J Iles Elementary | F129: ID #92576553 | G129: 56114 Grant Expenses:Capacity Building:Proactive:Education - School Culture Special Invite | H129: -3000 | I129: -63620.95
B130: 03/06/2024 | C130: Check | D130: 11911 | E130: Central Elementary School | F130: ID #92615865 | G130: 56113 Grant Expenses:Capacity Building:Proactive:Education - Ron Clark Academy | H130: -6797 | I130: -70417.95
B131: 03/06/2024 | C131: Check | D131: 11912 | E131: Jensen Camp Foundation | F131: ID #92487565 | G131: 56200 Grant Expenses:Capacity Building:Responsive | H131: -5000 | I131: -75417.95
B132: 03/06/2024 | C132: Check | D132: 11913 | E132: Girl Scouts of Eastern Missouri | F132: ID #92935633 | G132: 57220 Grant Expenses:Matching Grant:3G Matching Grants | H132: -2800 | I132: -78217.95
B133: 03/06/2024 | C133: Check | D133: 11914 | E133: Quincy Notre Dame Foundation | F133: ID #92935635 | G133: 57210 Grant Expenses:Matching Grant:2G Matching Grants | H133: -6000 | I133: -84217.95
B134: 03/06/2024 | C134: Check | D134: 11893 | E134: Angie Schlater | F134: Expense Reimbursement | G134: 63430 Program and Admin:Travel Expense:Staff travel | H134: -1032.47 | I134: -85250.42
B135: 03/11/2024 | C135: Check | D135: ach | E135: BCSB Checking | F135: Stop Payment | G135: 61300 Program and Admin:Bank Charge | H135: -20 | I135: -85270.42
B136: 03/13/2024 | C136: Check | D136: 11917 | E136: QPS 172 / Early Childhood and Family Center | F136: ID # 92953083 | G136: 56114 Grant Expenses:Capacity Building:Proactive:Education - School Culture Special Invite | H136: -3000 | I136: -88270.42
B137: 03/13/2024 | C137: Check | D137: 11918 | E137: Unity High School | F137: ID #92939451 | G137: 56114 Grant Expenses:Capacity Building:Proactive:Education - School Culture Special Invite | H137: -2500 | I137: -90770.42
B138: 03/13/2024 | C138: Check | D138: 11919 | E138: A-C Central High School | F138: ID #92956519 | G138: 56114 Grant Expenses:Capacity Building:Proactive:Education - School Culture Special Invite | H138: -2500 | I138: -93270.42
B139: 03/13/2024 | C139: Check | D139: 11920 | E139: Winchester Grade School | F139: ID #92947287 | G139: 56114 Grant Expenses:Capacity Building:Proactive:Education - School Culture Special Invite | H139: -3000 | I139: -96270.42
B140: 03/13/2024 | C140: Check | D140: 11921 | E140: Quincy Junior High School | F140: ID #92642209 | G140: 56114 Grant Expenses:Capacity Building:Proactive:Education - School Culture Special Invite | H140: -3000 | I140: -99270.42
B141: 03/13/2024 | C141: Check | D141: 11922 | E141: Griggsville-Perry CUSD 4 | F141: ID #92666951 | G141: 56114 Grant Expenses:Capacity Building:Proactive:Education - School Culture Special Invite | H141: -2500 | I141: -101770.42
B142: 03/13/2024 | C142: Check | D142: 11923 | E142: Bella Ease | F142: ID #92176547 | G142: 56111 Grant Expenses:Capacity Building:Proactive:Leadership - Dare to Lead | H142: -770 | I142: -102540.42
B143: 03/13/2024 | C143: Check | D143: 11924 | E143: The Salvation Army of Quincy | F143: ID #92576141 | G143: 56111 Grant Expenses:Capacity Building:Proactive:Leadership - Dare to Lead | H143: -3080 | I143: -105620.42
B144: 03/13/2024 | C144: Check | D144: 11925 | E144: Quincy Public Schools Foundation | F144: ID #92577775 | G144: 56111 Grant Expenses:Capacity Building:Proactive:Leadership - Dare to Lead | H144: -1540 | I144: -107160.42
B145: 03/13/2024 | C145: Check | D145: 11926 | E145: Winchester Grade School | F145: ID #89745257 | G145: 56111 Grant Expenses:Capacity Building:Proactive:Leadership - Dare to Lead | H145: -3350 | I145: -110510.42
B146: 03/13/2024 | C146: Check | D146: 11927 | E146: Beardstown High School | F146: ID #92622657 | G146: 56114 Grant Expenses:Capacity Building:Proactive:Education - School Culture Special Invite | H146: -3000 | I146: -113510.42
B147: 03/13/2024 | C147: Check | D147: 11928 | E147: Midwest Youth Services | F147: ID #92238345 | G147: 56111 Grant Expenses:Capacity Building:Proactive:Leadership - Dare to Lead | H147: -1786.35 | I147: -115296.77
B148: 03/13/2024 | C148: Check | D148: 11929 | E148: Versailles Growth Committee | F148: ID #92645965 | G148: 56111 Grant Expenses:Capacity Building:Proactive:Leadership - Dare to Lead | H148: -770 | I148: -116066.77
B149: 03/13/2024 | C149: Check | D149: 11930 | E149: Two Rivers Regional Council Foundation | F149: ID #92201795 | G149: 56111 Grant Expenses:Capacity Building:Proactive:Leadership - Dare to Lead | H149: -770 | I149: -116836.77
B150: 03/13/2024 | C150: Check | D150: 11931 | E150: North Greene Unit School District No 3 | F150: ID #92647139 | G150: 56114 Grant Expenses:Capacity Building:Proactive:Education - School Culture Special Invite | H150: -3000 | I150: -119836.77
B151: 03/13/2024 | C151: Check | D151: 11932 | E151: Western Elementary School | F151: ID #92636069 | G151: 56114 Grant Expenses:Capacity Building:Proactive:Education - School Culture Special Invite | H151: -3000 | I151: -122836.77
B152: 03/13/2024 | C152: Check | D152: 11933 | E152: QUANADA | F152: ID #92182921 | G152: 56111 Grant Expenses:Capacity Building:Proactive:Leadership - Dare to Lead | H152: -1540 | I152: -124376.77
B153: 03/13/2024 | C153: Check | D153: 11934 | E153: Greenfield High School | F153: ID #92550487 | G153: 56200 Grant Expenses:Capacity Building:Responsive | H153: -5000 | I153: -129376.77
B154: 03/13/2024 | C154: Check | D154: 11935 | E154: Learning Technology Center Of Illinois | F154: ID #92488871 | G154: 56111 Grant Expenses:Capacity Building:Proactive:Leadership - Dare to Lead | H154: -770 | I154: -130146.77
B155: 03/13/2024 | C155: Check | D155: 11936 | E155: Washington Elementary School | F155: ID #92668651 | G155: 56114 Grant Expenses:Capacity Building:Proactive:Education - School Culture Special Invite | H155: -4000 | I155: -134146.77
B156: 03/13/2024 | C156: Check | D156: 11937 | E156: Brown County United Way | F156: ID #92642467 | G156: 56111 Grant Expenses:Capacity Building:Proactive:Leadership - Dare to Lead | H156: -1540 | I156: -135686.77
B157: 03/13/2024 | C157: Check | D157: 11938 | E157: Pittsfield High School | F157: ID #92590193 | G157: 56114 Grant Expenses:Capacity Building:Proactive:Education - School Culture Special Invite | H157: -3000 | I157: -138686.77
B158: 03/13/2024 | C158: Check | D158: 11939 | E158: Dallas ESD 327 | F158: ID #92953017 | G158: 56114 Grant Expenses:Capacity Building:Proactive:Education - School Culture Special Invite | H158: -3000 | I158: -141686.77
B159: 03/13/2024 | C159: Check | D159: 11940 | E159: Quincy University | F159: ID #92138499 | G159: 56111 Grant Expenses:Capacity Building:Proactive:Leadership - Dare to Lead | H159: -1540 | I159: -143226.77
B160: 03/13/2024 | C160: Check | D160: 11941 | E160: Griggsville-Perry School District | F160: ID #92669619 | G160: 56114 Grant Expenses:Capacity Building:Proactive:Education - School Culture Special Invite | H160: -3000 | I160: -146226.77
B161: 03/13/2024 | C161: Check | D161: 11915 | E161: Kim Bielik | F161: Expense Reimbursement | G161: 63430 Program and Admin:Travel Expense:Staff travel | H161: -198.99 | I161: -146425.76
B162: 03/13/2024 | C162: Check | D162: 11916 | E162: Robyn Pilliod | F162: Expense Reimbursement | G162: 63430 Program and Admin:Travel Expense:Staff travel | H162: -174.2 | I162: -146599.96
B163: 03/13/2024 | C163: Check | D163: 11942 | E163: Ducks Unlimited | F163: ID #93130291 | G163: 57210 Grant Expenses:Matching Grant:2G Matching Grants | H163: -40000 | I163: -186599.96
B164: 03/13/2024 | C164: Check | D164: 11943 | E164: Nwtf | F164: ID #93130295 | G164: 57210 Grant Expenses:Matching Grant:2G Matching Grants | H164: -20000 | I164: -206599.96
B165: 03/13/2024 | C165: Check | D165: 11944 | E165: Sacred Heart-Griffin High School | F165: ID #93130297 | G165: 57210 Grant Expenses:Matching Grant:2G Matching Grants | H165: -5000 | I165: -211599.96
B166: 03/13/2024 | C166: Check | D166: 11945 | E166: Wooden It Be Lovely | F166: ID #93130299 | G166: 57210 Grant Expenses:Matching Grant:2G Matching Grants | H166: -2000 | I166: -213599.96
B167: 03/13/2024 | C167: Check | D167: 11946 | E167: International Health And Development Network | F167: ID #93130293 | G167: 57210 Grant Expenses:Matching Grant:2G Matching Grants | H167: -2500 | I167: -216099.96
B168: 03/18/2024 | C168: Journal Entry | D168: 11777 void | F168: void lost check | G168: -Split- | H168: 37953.87 | I168: -178146.09
B169: 03/18/2024 | C169: Check | D169: Ach | E169: CyberGrants | F169: Grants Management Software | G169: 61800 Program and Admin:Grant Mgmt Software-Cybergrants | H169: -37953.87 | I169: -216099.96
B170: 03/20/2024 | C170: Check | D170: 11951 | E170: The Haven of Grace | F170: ID #91231481 | G170: 56200 Grant Expenses:Capacity Building:Responsive | H170: -5000 | I170: -221099.96
B171: 03/20/2024 | C171: Check | D171: 11954 | E171: Quincy Public Schools | F171: ID #92500467 | G171: 56200 Grant Expenses:Capacity Building:Responsive | H171: -10000 | I171: -231099.96
B172: 03/20/2024 | C172: Check | D172: 11953 | E172: Young Americas Foundation | F172: ID #93187547 | G172: 57210 Grant Expenses:Matching Grant:2G Matching Grants | H172: -1500 | I172: -232599.96
B173: 03/20/2024 | C173: Check | D173: 11952 | E173: Pike County Unmet Needs | F173: ID #88174913 | G173: 54200 Grant Expenses:Families:Responsive | H173: -5000 | I173: -237599.96
B174: 03/20/2024 | C174: Check | D174: 11948 | E174: Mt Sterling Park District | F174: ID 90705865 Clark Park Loop Debit from Contribution Payable | G174: 22200 Contributions Payable | H174: -2547.95 | I174: -240147.91
B175: 03/20/2024 | C175: Check | D175: 11949 | E175: Beardstown Main Street | F175: ID #92231421 | G175: 56111 Grant Expenses:Capacity Building:Proactive:Leadership - Dare to Lead | H175: -770 | I175: -240917.91
B176: 03/20/2024 | C176: Check | D176: 11950 | E176: Chaddock Children's Foundation | F176: ID #92209441 | G176: 56101 Grant Expenses:Capacity Building:Proactive:Programs & Strategy - Marketing (Video Storytelling) | H176: -1800 | I176: -242717.91
B177: 03/20/2024 | C177: Check | D177: 11947 | E177: Hawkhurst Ridge | F177: Cleaning fees from March 2024 TFF Staff Retreat | G177: 62160 Program and Admin:Meeting Expense:Staff Meetings | H177: -540 | I177: -243257.91
B178: 03/27/2024 | C178: Check | D178: 11957 | E178: There with Care | F178: Project Title: Supporting Families - ID 92098449 | G178: 57120 Grant Expenses:Invitation Grants:Families | H178: -15000 | I178: -258257.91
B179: 03/27/2024 | C179: Check | D179: 11956 | E179: City of Mt Sterling | F179: ID #91281399 | G179: 22200 Contributions Payable | H179: -4908 | I179: -263165.91
B180: 03/27/2024 | C180: Check | D180: 11958 | E180: The Rise School Of Denver | F180: ID #93189485 | G180: 57310 Grant Expenses:Volunteer Incentive Program:VIP Grants | H180: -1500 | I180: -264665.91
B181: 03/27/2024 | C181: Check | D181: 11955 | E181: Callie Niederhauser | F181: Expense Reimbursement | G181: 63430 Program and Admin:Travel Expense:Staff travel | H181: -198.39 | I181: -264864.3
B182: 03/29/2024 | C182: Journal Entry | D182: March Bank Charges | F182: Bank Charge per 3.29.2024 Statement | G182: -Split- | H182: -30 | I182: -264894.3
B183: 03/31/2024 | C183: Journal Entry | D183: March Mark to Market | G183: -Split- | H183: 350000 | I183: 85105.7
A184: Total for 11110 TFF-BCSB Checking Account | H184: -22773.59
A185: 11120 JP Morgan MM
B186: Beginning Balance | I186: 408095.21
B187: 01/26/2024 | C187: Check | E187: Tracy Family Foundation | G187: 11110 TFF-BCSB Checking Account | H187: -300000 | I187: 108095.21
B188: 01/31/2024 | C188: Journal Entry | D188: 23 Jan Mark to Market | G188: -Split- | H188: 4548.87 | I188: 112644.08
B189: 02/15/2024 | C189: Check | E189: Tracy Family Foundation | G189: 11110 TFF-BCSB Checking Account | H189: -300000 | I189: -187355.92
B190: 02/29/2024 | C190: Journal Entry | D190: Expected Feb Reclass | G190: -Split- | H190: 1512817.47 | I190: 1325461.55
B191: 02/29/2024 | C191: Journal Entry | D191: February Mark to Mark | G191: -Split- | H191: -293078.59 | I191: 1032382.96
B192: 02/29/2024 | C192: Journal Entry | D192: Duplicate Transfer | G192: -Split- | H192: 300000 | I192: 1332382.96
B193: 03/31/2024 | C193: Journal Entry | D193: March Mark to Market | G193: -Split- | H193: 10750702.72 | I193: 12083085.68
B194: 03/31/2024 | C194: Journal Entry | D194: March JPM Accrued Int | G194: -Split- | H194: 599.72 | I194: 12083685.4
A195: Total for 11120 JP Morgan MM | H195: 11675590.19
A196: 11130 JP Morgan Cash Account
B197: Beginning Balance | I197: 127682.65
B198: 01/31/2024 | C198: Journal Entry | D198: 23 Jan Mark to Market | G198: -Split- | H198: -34071.56 | I198: 93611.09
B199: 02/29/2024 | C199: Journal Entry | D199: February Mark to Mark | G199: -Split- | H199: -63571.96 | I199: 30039.13
B200: 03/31/2024 | C200: Journal Entry | D200: March Mark to Market | G200: -Split- | H200: 47445.27 | I200: 77484.4
A201: Total for 11130 JP Morgan Cash Account | H201: -50198.25
... 476 more rows
